Cogmind - Beta 13 @@@ ROGUE MODE // 2024.05.11 @ 16:11:04 Player: petrodigitator Result: Destroyed by G-50 Soldier with Heavy Laser Performance ------------- Evolutions (2) 1000 Regions Visited (3) 600 Robots Destroyed (25) 125 Value Destroyed (485) 485 Prototype IDs (1) 20 Alien Tech Used (0) 0 Bonus (0) 0 TOTAL SCORE: 2230 Bonus ------- None Cogmind --------- Core Integrity 0/550 Matter 262/300 Energy 88/160 System Corruption 0% Temperature Cool (9) Movement Flying (180) Ox2 Location -8/Materials Parts ------- > --- POWER (1) -------- Light Nuclear Core > --- PROPULSION (3) --- Improved Flight Unit > --- UTILITY (4) ------ Improved Signal Interpreter > --- WEAPON (3) ------- Heavy Rocket Launcher > --- INVENTORY (5) ---- Light Ion Engine Spiked Treads Subdweller Monowheel Improved Heat Sink Peak State ------------ > --- POWER ------------ Light Nuclear Core > --- PROPULSION ------- Improved Flight Unit > --- UTILITY ---------- Advanced Weight Redist. System Improved Signal Interpreter Reaction Control System > --- WEAPON ----------- Lightning Gun Lightning Gun > --- INVENTORY -------- Light Ion Engine Spiked Treads Subdweller Monowheel Improved Heat Sink Heavy Rocket Launcher [Rating: 24] Favorites ----------- Power Ion Engine Engine Ion Engine Power Core Nuclear Core Propulsion Aluminum Leg Treads Spiked Treads Leg Aluminum Leg Wheel Subdweller Monowheel Flight Unit Improved Flight Unit Utility Small Storage Unit Device Tractor Beam Storage Small Storage Unit Processor Improved Signal Interpreter Protection Medium Armor Plating Weapon Assault Rifle Energy Gun EM Pulse Gun Ballistic Gun Assault Rifle Launcher Grenade Launcher Build | -11 -10 -10 -8 ------- Run | Yrd Mat Sub Mat Slots Evolved 4 | . . . 4 Power . | . . . . Propulsion 1 | . . . 1 Utility 2 | . . . 2 Weapon 1 | . . . 1 Parts Attached 43 | 7 13 4 19 Power 6 | 1 2 1 2 Engine 4 | 1 2 1 . Core 2 | . . . 2 Reactor . | . . . . Propulsion 9 | 2 2 1 4 Treads 1 | . . . 1 Leg 6 | 2 2 1 1 Wheel 1 | . . . 1 Hover . | . . . . Flight 1 | . . . 1 Utility 12 | 2 2 . 8 Device 6 | 1 2 . 3 Storage 3 | 1 . . 2 Processor 2 | . . . 2 Hackware . | . . . . Protection 1 | . . . 1 Artifact . | . . . . Weapon 16 | 2 7 2 5 Energy Gun 5 | 2 . . 3 Energy Cannon . | . . . . Ballistic Gun 7 | . 5 2 . Ballistic Cannon . | . . . . Launcher 4 | . 2 . 2 Special Weapon . | . . . . Impact Weapon . | . . . . Slashing Weapon . | . . . . Piercing Weapon . | . . . . Special Melee Weapon . | . . . . Unidentified Prototypes 1 | . . . 1 Parts Lost 10 | . 2 . 8 Power 1 | . 1 . . Propulsion 3 | . . . 3 Utility 4 | . 1 . 3 Weapon 2 | . . . 2 Highest Loss Streak 5 | . 2 . 5 To Critical Strikes . | . . . . Average Slot Usage (%) 91 | . 98 100 53 Engine 11 | . 13 14 3 Leg 24 | . 28 28 9 Device 12 | . 13 14 10 Storage 12 | . 14 14 7 Ballistic Gun 22 | . 26 28 5 Launcher 1 | . 1 . . Naked Turns 7 | . . . 7 Heaviest Build 30 | 15 16 19 30 Greatest Support 40 | 20 20 30 40 Greatest Overweight (x) 1 | 1 . . 1 Average Overweight (x) . | . . . . Largest Inventory Capacity 8 | 8 8 8 8 Average Capacity 7 | 7 8 8 6 Most Carried 8 | 3 7 8 7 Average Carried 4 | 1 5 3 5 Final Capacity 8 | 8 8 8 5 Final Carried 8 | 2 3 8 4 Class Distribution -------------------- 73% | Mutant 19% | Scavenger-Mutant 7% | Derelict-Mutant Dominant Class ---------------- Mutant | -10/Materials Scavenger-Mutant | -10/Subcaves Mutant | -8/Materials Resources | -11 -10 -10 -8 ----------- Run | Yrd Mat Sub Mat Matter Collected 906 | 252 408 159 87 Remotely 323 | . 323 . . Salvage Created 552 | 90 198 27 237 Parts 59 | 6 31 4 18 Haulers Intercepted . | . . . . Recyclers Shooed 4 | . 4 . . Parts Field Recycled . | . . . . Retrieved Matter . | . . . . Parts Self-Destructed 8 | . . 8 . Prevented . | . . . . Kills | -11 -10 -10 -8 ------- Run | Yrd Mat Sub Mat Combat Hostiles Destroyed 19 | . 11 1 7 Guns 13 | . 6 1 6 AOE 6 | . 5 . 1 Classes Destroyed 9 | 2 4 1 2 Worker 1 | . . . 1 Builder 1 | . 1 . . Tunneler 1 | 1 . . . Recycler 1 | 1 . . . Watcher 2 | . 2 . . Swarmer 12 | . 9 . 3 Grunt 5 | . 2 . 3 Hunter 1 | . . . 1 Subdweller 1 | . . 1 . Best Kill Streak 7 | 2 7 1 3 Combat Bots Only 6 | . 6 1 3 Max Kills in Single Turn 3 | 1 3 1 1 Gunslinging . | . . . . Exploded 3 | . 3 . 1 Melee . | . . . . Uniques/NPCs Destroyed . | . . . . Combat | -11 -10 -10 -8 -------- Run | Yrd Mat Sub Mat Hostile Shots Fired 204 | . 72 1 131 Missed 67 | . 26 . 41 Damage Taken 1979 | 17 491 16 1455 Core 638 | . 84 . 554 Absorbed by Shields . | . . . . Core Remaining (%) 83 | 100 . 66 . Volleys Fired 75 | 5 39 1 30 Largest 2 | 2 2 2 2 Hottest 110 | 80 40 60 110 Shots Fired 123 | 10 67 2 44 Gun 107 | 10 56 2 39 Cannon . | . . . . Launcher 16 | . 11 . 5 Special . | . . . . Kinetic 73 | . 56 2 15 Thermal . | . . . . Explosive 16 | . 11 . 5 Electromagnetic 34 | 10 . . 24 Robot Hit Streak 5 | 3 5 2 5 Robot Miss Streak 6 | 2 6 . 3 Penetration Max . | . . . . Secondary Targets 1 | . 1 . . Max Gunslinging Chain 1 | . 1 . . Shots Hit Robots 53 | 6 22 2 23 Core Hits 40 | 2 21 1 16 Critical Kills . | . . . . Critical Parts Destroyed . | . . . . Critical Strikes . | . . . . Melee Attacks . | . . . . Impact . | . . . . Slashing . | . . . . Piercing . | . . . . Sneak Attacks . | . . . . Combat Hostiles . | . . . . Follow-up Attacks . | . . . . Damage Inflicted 1625 | 125 692 46 762 Guns 872 | 83 306 46 437 Cannons . | . . . . Explosions 747 | 42 386 . 319 Melee . | . . . . Ramming 6 | . . . 6 Kinetic 491 | . 306 46 139 Thermal 88 | 42 . . 46 Explosive 659 | . 386 . 273 Electromagnetic 381 | 83 . . 298 Impact . | . . . . Slashing . | . . . . Piercing . | . . . . Highest Corruption . | . . . . Average Corruption . | . . . . Corruption Purged . | . . . . Corruption Blocked . | . . . . Overload Shots . | . . . . Overflow Damage 16 | . 11 . 5 Projectiles . | . . . . Explosions 16 | . 11 . 5 Melee . | . . . . Knockbacks . | . . . . Impact . | . . . . Kinetic . | . . . . Secondary . | . . . . Self-Inflicted Damage 105 | 17 57 . 31 Shots 4 | 1 2 . 1 Rammed 1 | . . . 1 Targets Rammed 1 | . . . 1 Kicked . | . . . . Crushed . | . . . . Highest Temperature 116 | 48 5 . 116 Average Temperature 34 | 21 5 . 38 Received Heat Transfer 756 | . 108 . 648 Siege Activations . | . . . . Robots Corrupted . | . . . . Combat Hostiles . | . . . . Parts Fried . | . . . . Impact Corruptions . | . . . . Robots Melted . | . . . . Combat Hostiles . | . . . . Parts Melted . | . . . . Heat Transferred 100 | 50 . . 50 Parts Sabotaged . | . . . . Parts Stolen . | . . . . Parts Stripped . | . . . . Power Chain Reactions 2 | 1 . . 1 Alert | -11 -10 -10 -8 ------- Run | Yrd Mat Sub Mat Peak Influence 403 | 10 369 . 403 Initial 6 | . 6 . . Average 104 | 2 94 . 170 Maximum Alert Level 2 | . 1 . 2 Low Security (%) 73 | 100 75 . 56 Level 1 26 | . 24 . 42 Level 2 . | . . . . Level 3 . | . . . . Level 4 . | . . . . Level 5 . | . . . . High Security . | . . . . Max Security . | . . . . Squads Dispatched 1 | . 1 . . Investigation . | . . . . Extermination . | . . . . Reinforcement 1 | . 1 . . Assault . | . . . . Garrison . | . . . . Intercept . | . . . . Searches Triggered . | . . . . Construction Impeded . | . . . . Haulers Reinforced . | . . . . Active Scanning Responses . | . . . . Cargo Convoy Interrupts . | . . . . Stealth | -11 -10 -10 -8 --------- Run | Yrd Mat Sub Mat Distress Signals 4 | . 2 . 2 Communications Jammed . | . . . . Distress Signals . | . . . . Times Spotted 50 | . 25 1 24 Peak Tracking Total 10 | . 4 1 10 Tactical Retreats 9 | . 2 . 7 Traps | -11 -10 -10 -8 ------- Run | Yrd Mat Sub Mat Traps Triggered . | . . . . Indirectly . | . . . . Trap Hack Attempts . | . . . . Triggered . | . . . . Disarmed . | . . . . Reprogrammed . | . . . . Reused . | . . . . Traps Extracted . | . . . . Installed . | . . . . Triggered . | . . . . Machines | -11 -10 -10 -8 ---------- Run | Yrd Mat Sub Mat Machines Disabled 1 | . . . 1 Max in Single Turn 1 | . . . 1 Garrison Access 1 | . . . 1 Machines Repaired . | . . . . Machines Dismantled . | . . . . Machines Sabotaged . | . . . . Overloaded Fab Kills . | . . . . Hacking | -11 -10 -10 -8 --------- Run | Yrd Mat Sub Mat Machines Accessed 8 | . 6 . 2 Terminals 6 | . 5 . 1 Fabricators . | . . . . Repair Stations . | . . . . Recycling Units 1 | . 1 . . Scanalyzers . | . . . . Garrison Access 1 | . . . 1 Total Hacks 16 | . 12 . 4 Successful 10 | . 8 . 2 Failed 6 | . 4 . 2 Catastrophic . | . . . . Database Lockouts . | . . . . Manual 2 | . 2 . . Terminals 10 | . 9 . 1 Fabricators . | . . . . Repair Stations . | . . . . Recycling Units 3 | . 3 . . Scanalyzers . | . . . . Garrison Access 3 | . . . 3 Terminal Hacks 6 | . 5 . 1 Alert Level 2 | . 1 . 1 Locate Traps 3 | . 3 . . Hauler Manifests 1 | . 1 . . Fabricator Hacks . | . . . . Repair Station Hacks . | . . . . Recycling Unit Hacks 3 | . 3 . . Process 1 | . 1 . . Report Inventory 1 | . 1 . . Retrieve Matter 1 | . 1 . . Scanalyzer . | . . . . Garrison Access Hacks 1 | . . . 1 Seal Access 1 | . . . 1 Unauthorized Hacks . | . . . . Terminals . | . . . . Fabricators . | . . . . Repair Stations . | . . . . Recycling Units . | . . . . Scanalyzers . | . . . . Garrison Access . | . . . . Data Cores Recovered . | . . . . Used . | . . . . Hacking Detections 3 | . 3 . . Full Trace Events . | . . . . Feedback Events . | . . . . Feedback Blocked . | . . . . Robot Schematics Acquired . | . . . . Robots Built . | . . . . Authchips . | . . . . Time . | . . . . Total Robot Build Rating . | . . . . Part Schematics Acquired . | . . . . Parts Built . | . . . . Authchips . | . . . . Time . | . . . . Total Part Build Rating . | . . . . Parts Repaired . | . . . . Time . | . . . . Parts Recycled . | . . . . Recycled Matter 95 | . 95 . . Retrieved Matter 169 | . 169 . . Retrieved Components . | . . . . Parts Scanalyzed . | . . . . Part Schematics Acquired . | . . . . Parts Damaged . | . . . . Bothacking | -11 -10 -10 -8 ------------ Run | Yrd Mat Sub Mat Used RIF Installer . | . . . . Robots Hacked . | . . . . Non-combat . | . . . . Combat . | . . . . Robot Hacks Applied . | . . . . Relay Couplers Released . | . . . . Fabnet Peak Effective % . | . . . . Robots Rewired . | . . . . Allies Hacked . | . . . . Hacks Repelled . | . . . . Allies | -11 -10 -10 -8 -------- Run | Yrd Mat Sub Mat Total Allies . | . . . . Largest Group . | . . . . Highest-Rated Group . | . . . . Highest-Rated Ally . | . . . . Total Orders . | . . . . Ally Attacks . | . . . . Total Damage . | . . . . Kills . | . . . . Allies Corrupted . | . . . . Allies Melted . | . . . . Intel | -11 -10 -10 -8 ------- Run | Yrd Mat Sub Mat Robot Analysis Total . | . . . . Derelict Logs Recovered . | . . . . Drone Launches . | . . . . Drone Recoveries . | . . . . Exploration | -11 -10 -10 -8 ------------- Run | Yrd Mat Sub Mat Turns Passed 2174 | 109 1280 421 364 Spaces Moved 1446 | 66 689 335 356 Core 244 | 9 . . 235 Treads . | . . . . Legs 1152 | 57 689 335 71 Wheels . | . . . . Hover . | . . . . Flight 50 | . . . 50 Fastest Speed 40 | 50 120 120 40 Average Speed 106 | 115 120 121 64 Slowest Speed 140 | 120 120 130 140 Overloaded Moves . | . . . . Propulsion Burnouts . | . . . . Robots Hopped . | . . . . Cave-ins Triggered . | . . . . Exploration Rate (%) 37 | 3 92 25 28 Regions Visited 3 Branch Regions 1 Pre-discovered Areas 1 | . . 1 . Known Exits Taken . | . . . . Unknown Exits Taken 3 | 1 1 1 . Scrap Searched 5 | . . 5 . Spaces Dug . | . . . . Terrain Destroyed 98 | . 66 . 32 Melee . | . . . . Projectile 1 | . . . 1 AOE 97 | . 66 . 31 Terrain Rammed . | . . . . Walls Destroyed . | . . . . Machines Disabled . | . . . . Actions | -11 -10 -10 -8 --------- Run | Yrd Mat Sub Mat Total 1957 | 89 1073 347 448 Wait 347 | 3 316 . 28 Move 1443 | 65 688 334 356 Hop . | . . . . Pick Up 27 | 9 9 6 3 Fast Attach 9 | . . . 9 Attach 20 | 7 2 2 9 Detach 2 | . . . 2 Swap 14 | . 11 2 1 Drop 19 | . 8 2 9 Fire 75 | 5 39 1 30 Melee . | . . . . Ram 1 | . . . 1 Kick . | . . . . Crush . | . . . . Escape Stasis . | . . . . Rewire . | . . . . Trap . | . . . . Miscellaneous . | . . . . Route ------- -11/Scrapyard -10/Materials (discovered 5 exits: [*Mat x3] / [*Min] / [*Sub]) -10/Subcaves (discovered 2 exits: *Mat / [Rec]) -8/Materials History --------- Turn | Location | Event 13 | -11/Scrapyard | Discovered new exit (range 15) 110 | -11/Scrapyard | Entered Materials 271 | -10/Materials | Discovered new exit (range 9) 303 | -10/Materials | Build established: Mutant 532 | -10/Materials | Discovered new exit (range 12) 1038 | -10/Materials | Discovered new exit (range 16) 1195 | -10/Materials | Discovered new exit (range 14) 1372 | -10/Materials | Discovered new exit (range 15) 1390 | -10/Materials | Entered Subcaves 1407 | -10/Subcaves | Learned location of Zion (-7) 1407 | -10/Subcaves | Met a Zionite searching for "candidates" 1454 | -10/Subcaves | A swath of the cavern ceiling suddenly collapsed 1619 | -10/Subcaves | Build established: Scavenger-Mutant 1701 | -10/Subcaves | Discovered new exit (range 6) 1738 | -10/Subcaves | Disturbed a concealed Subdweller 1783 | -10/Subcaves | Discovered new exit (range 9) 1811 | -10/Subcaves | Entered Materials 1811 | -8/Materials | Evolved 4 slots: Propulsion x1, Utility x2, Weapon x1 1957 | -8/Materials | Released all parts (3) 1967 | -8/Materials | Core integrity fell below 50% 1987 | -8/Materials | Lost 5 parts (3n1u1w) 2054 | -8/Materials | Core integrity fell below 20% 2175 | -8/Materials | Destroyed by G-50 Soldier with Heavy Laser Last Messages --------------- 02110_ Identified Imp. Flight Unit. 02117_ Acquired 31 matter. 02117_ U-05 Engineer lays Concrete. 02118_ K-01 Serf collects debris. 02121_ Dropped Nuclear Core. 02121_ K-01 Serf collects debris. 02122_ Acquired 10 matter. 02122_ U-05 Engineer lays Concrete. 02124_ Acquired Lightning Gun. 02127_ Acquired Imp. Heat Sink. 02128_ Acquired 10 matter. 02130_ K-01 Serf collects debris. 02148_ G-47 Trooper destroyed. 02149_ K-01 Serf collects debris. 02166_ G-47 Trooper IFF system glitched. 02166_ K-01 Serf destroyed. 02168_ Adv. Weight Redist. System destroyed. 02168_ Dropped Lightning Gun. 02169_ Dropped Reaction Control System. 02174_ Destroyed Imp. Heat Sink. Map ----- +----------------------------------------------------+ | ????????????????????????????????????????? | | ????????????????????????????????????????? | | ????????????????????????????????????????# | | ????????????????????????????????????????? | | ????????????????????????????????????????? | | ????????????????????????????????????????? | | ????????????????????????????????????????# | | ????????????????????????????????????????? | | ???????????????????????????????????????## | | ????????????????????????????????????????? | | ???????????????????????????????????????#? | | ???????????????????????????????########## | | ???????????????????????????????# | | ?????###########?????????????#?# | | ?????# ] T #???????????????# | | ?????# ########??????#?# " | | ?????# ! # """ #????????# " | | ?????# # """ !#????#???#!! " | | ?????# """ """ + """ ##########! | | ?????# """ """ # ##]]!![[##! | | ?????# """ """ # ##] ! ## " | | ?????# # # #= % " | | ?????#########+## ! # * | | ???????????# g % | | ???????????# [ g = | | ???????????# @ [! ##### | | ???????????##### ############???# | | ???????????????###########????????????#?? | | ????????????????????????????????????????? | | | | | | | | | | | | | | | | | | | | | | | | | | | | | | | | | | | | | | | | | | | +----------------------------------------------------+ Best States ------------- Heat Dissipation 31 Energy Generation 15 Energy Capacity 250 Matter Stores 474 Matter Capacity 500 Sight Range 16 Terrain Scan Range 16 Terrain Scan Density 85 Additional Mass Support 9 Armor Coverage 225 Evasion (%) 70 Item Schematics ----------------- None Robot Schematics ------------------ None Fabricated ------------ Nothing Alien Tech Used ----------------- None Achievements -------------- None Challenges ------------ None Game ------ Seed ScrapChromaticWell Manual? 0 Play Time 00:48:00 Cumulative 49.4 hours Start 2024.05.10 @ 23:42:17 End 2024.05.11 @ 16:11:04 Sessions 3 Manual Loads 0 Difficulty Rogue Special Mode None Game No. 30 Rogue 28 Adventurer 0 Explorer 2 Win Type - Total 1 Types 1/0/0/0/0/0/0/0/0 Lore% 31 Gallery% 38 Achievement% 31 Wizard Run 0 Options --------- Layout 2 ASCII 0 Keyboard 0 Movement Mouse Keybinds 0 Fullscreen 1 Font 24/Smallcaps Map View 50x44 Zoom Use 0% Tactical HUD 1 Map Filters NONE Filters NONE Steam 1 RUN: b649dbd5-419b-4a2b-8972-a92035560dff